Cogmind - Beta 14 @@@ ROGUE MODE // 2024.09.14 @ 21:37:10 Player: Dull Result: Destroyed by BR-C3F(R) with Subdweller Beam Cannon Performance ------------- Evolutions (0) 0 Regions Visited (2) 400 Robots Destroyed (29) 145 Value Destroyed (383) 383 Prototype IDs (0) 0 Alien Tech Used (0) 0 Bonus (0) 0 TOTAL SCORE: 928 Bonus ------- None Cogmind --------- Core Integrity 0/250 Matter 300/300 Energy 125/125 System Corruption 1% Temperature Warm (130) Movement Core (1450) Ox28 Location -10/Subcaves Parts ------- > --- POWER (1) -------- Light Ion Engine > --- PROPULSION (2) --- (None) > --- UTILITY (2) ------ Huge Storage Unit > --- WEAPON (2) ------- Mace Mace > --- INVENTORY (25) --- Ion Engine Ion Engine Light Ion Engine Light Treads Light Treads Improved Hover Unit Improved Hover Unit Improved Hover Unit Improved Hover Unit Small Storage Unit High-capacity Storage Unit Hardened Light Armor Plating Hardened Light Armor Plating Tractor Beam Assault Rifle Mining Laser Mace Mace Mining Claw Peak State ------------ > --- POWER ------------ Light Nuclear Core > --- PROPULSION ------- Light Treads Light Treads > --- UTILITY ---------- High-capacity Storage Unit Hardened Light Armor Plating > --- WEAPON ----------- Mace Mace > --- INVENTORY -------- Light Ion Engine Light Ion Engine Light Treads Improved Hover Unit Improved Hover Unit Improved Hover Unit Improved Hover Unit Small Storage Unit Hardened Light Armor Plating Hardened Light Armor Plating Hardened Light Armor Plating Tractor Beam Assault Rifle Mining Laser Mace [Rating: 14] Favorites ----------- Power Light Ion Engine Engine Light Ion Engine Power Core Light Nuclear Core Propulsion Light Treads Treads Light Treads Leg Aluminum Leg Utility Hardened Light Armor Plating Storage High-capacity Storage Unit Protection Hardened Light Armor Plating Weapon Mace Energy Gun EM Pulse Gun Impact Weapon Mace Build | -11 -10 -10 ------- Run | Yrd Mat Sub Slots Evolved . | . . . Power . | . . . Propulsion . | . . . Utility . | . . . Weapon . | . . . Parts Attached 10 | . 10 . Power 2 | . 2 . Engine 1 | . 1 . Core 1 | . 1 . Reactor . | . . . Propulsion 2 | . 2 . Treads 2 | . 2 . Leg . | . . . Wheel . | . . . Hover . | . . . Flight . | . . . Utility 4 | . 4 . Device . | . . . Storage 2 | . 2 . Processor . | . . . Hackware . | . . . Protection 2 | . 2 . Artifact . | . . . Weapon 2 | . 2 . Energy Gun . | . . . Energy Cannon . | . . . Ballistic Gun . | . . . Ballistic Cannon . | . . . Launcher . | . . . Special Weapon . | . . . Impact Weapon 2 | . 2 . Slashing Weapon . | . . . Piercing Weapon . | . . . Special Melee Weapon . | . . . Unidentified Prototypes . | . . . Parts Lost 6 | . 3 3 Power 1 | . 1 . Propulsion 3 | . 1 2 Utility 2 | . 1 1 Weapon . | . . . Highest Loss Streak 3 | . 2 3 To Critical Strikes . | . . . Average Slot Usage (%) 99 | . 99 99 Engine 10 | . 10 14 Core 3 | . 3 . Treads 20 | . 19 27 Leg 7 | . 8 . Storage 14 | . 14 14 Protection 13 | . 13 14 Impact Weapon 27 | . 27 28 Peak Build Rating 14 | 6 14 12 Average Rating 12 | 6 12 11 On Entrance 8 | 6 6 12 Naked Turns . | . . . Heaviest Build 92 | 12 92 92 Greatest Support 40 | 20 40 40 Greatest Overweight (x) 5 | . 5 2 Average Overweight (x) 1 | . 1 2 Largest Inventory Capacity 25 | 8 25 25 Average Capacity 22 | 8 21 25 Most Carried 19 | 6 19 19 Average Carried 16 | 6 16 19 Final Capacity 25 | 8 25 25 Final Carried 19 | 6 19 19 Class Distribution -------------------- 100% | Mutant Dominant Class ---------------- Mutant | -10/Materials Mutant | -10/Subcaves Resources | -11 -10 -10 ----------- Run | Yrd Mat Sub Matter Collected 309 | 200 109 . Remotely . | . . . Salvage Created 752 | . 752 . Parts 27 | . 27 . Haulers Intercepted 2 | . 2 . Recyclers Shooed 1 | . 1 . Parts Field Recycled . | . . . Retrieved Matter . | . . . Parts Self-Destructed . | . . . Prevented . | . . . Kills | -11 -10 -10 ------- Run | Yrd Mat Sub Combat Hostiles Destroyed 15 | . 15 . Melee 9 | . 9 . Cannons 2 | . 2 . Classes Destroyed 8 | . 8 . Worker 2 | . 2 . Builder 7 | . 7 . Hauler 2 | . 2 . Recycler 1 | . 1 . Mechanic 1 | . 1 . Operator 1 | . 1 . Swarmer 9 | . 9 . Grunt 6 | . 6 . Best Kill Streak 6 | . 6 . Combat Bots Only 3 | . 3 . Max Kills in Single Turn 1 | . 1 . Gunslinging . | . . . Exploded . | . . . Melee 1 | . 1 . Uniques/NPCs Destroyed . | . . . Combat | -11 -10 -10 -------- Run | Yrd Mat Sub Hostile Shots Fired 119 | . 110 9 Missed 29 | . 28 1 Damage Taken 1180 | . 787 393 Core 274 | . 144 130 Absorbed by Shields . | . . . Core Remaining (%) 100 | 100 . . Volleys Fired . | . . . Largest . | . . . Hottest . | . . . Shots Fired . | . . . Gun . | . . . Cannon . | . . . Launcher . | . . . Special . | . . . Kinetic . | . . . Thermal . | . . . Explosive . | . . . Electromagnetic . | . . . Robot Hit Streak . | . . . Robot Miss Streak . | . . . Penetration Max . | . . . Secondary Targets . | . . . Shots Hit Robots 42 | . 40 2 Core Hits 9 | . 9 . Critical Kills 1 | . 1 . Critical Parts Destroyed 7 | . 6 1 Critical Strikes 8 | . 7 1 Smash 8 | . 7 1 Melee Attacks 61 | . 58 3 Impact 61 | . 58 3 Slashing . | . . . Piercing . | . . . Sneak Attacks 17 | . 17 . Combat Hostiles . | . . . Follow-up Attacks 4 | . 4 . Damage Inflicted 1907 | . 1841 66 Guns . | . . . Cannons . | . . . Explosions . | . . . Melee 1907 | . 1841 66 Ramming . | . . . Kinetic . | . . . Thermal . | . . . Explosive . | . . . Electromagnetic . | . . . Impact 1907 | . 1841 66 Slashing . | . . . Piercing . | . . . Highest Corruption 1 | . 1 1 Average Corruption 1 | . 1 1 Corruption Purged . | . . . Corruption Blocked . | . . . Effects 4 | . 2 2 Message Errors 1 | . . 1 Matter Fused 2 | . 1 1 Energy Discharges 1 | . 1 . Overload Shots . | . . . Overflow Damage 753 | . 708 45 Projectiles 17 | . 17 . Explosions . | . . . Melee 736 | . 691 45 Knockbacks 17 | . 15 2 Impact 14 | . 12 2 Kinetic . | . . . Secondary 3 | . 3 . Self-Inflicted Damage . | . . . Shots . | . . . Rammed . | . . . Targets Rammed . | . . . Kicked . | . . . Crushed . | . . . Highest Temperature 246 | . 2 246 Average Temperature 152 | . 2 182 Received Heat Transfer 462 | . 165 297 Siege Activations . | . . . Robots Corrupted 13 | . 13 . Combat Hostiles 4 | . 4 . Parts Fried 29 | . 29 . Impact Corruptions 32 | . 31 1 Robots Melted . | . . . Combat Hostiles . | . . . Parts Melted . | . . . Heat Transferred . | . . . Parts Sabotaged . | . . . Parts Stolen . | . . . Parts Stripped . | . . . Power Chain Reactions . | . . . Alert | -11 -10 -10 ------- Run | Yrd Mat Sub Peak Influence 171 | . 171 . Initial . | . . . Average 72 | . 72 . Maximum Alert Level . | . . . Low Security (%) 100 | 100 100 . Level 1 . | . . . Level 2 . | . . . Level 3 . | . . . Level 4 . | . . . Level 5 . | . . . High Security . | . . . Max Security . | . . . Squads Dispatched 2 | . 2 . Investigation 1 | . 1 . Extermination . | . . . Reinforcement 1 | . 1 . Assault . | . . . Garrison . | . . . Intercept . | . . . Searches Triggered . | . . . Construction Impeded . | . . . Haulers Reinforced . | . . . Active Scanning Responses . | . . . Cargo Convoy Interrupts . | . . . Stealth | -11 -10 -10 --------- Run | Yrd Mat Sub Distress Signals 3 | . 3 . Communications Jammed . | . . . Distress Signals . | . . . Times Spotted 33 | . 31 2 Peak Tracking Total 5 | . 5 2 Tactical Retreats 8 | . 8 . Traps | -11 -10 -10 ------- Run | Yrd Mat Sub Traps Triggered 2 | . 2 . Indirectly . | . . . Trap Hack Attempts . | . . . Triggered . | . . . Disarmed . | . . . Reprogrammed . | . . . Reused . | . . . Traps Extracted . | . . . Installed . | . . . Triggered 1 | . 1 . Machines | -11 -10 -10 ---------- Run | Yrd Mat Sub Machines Disabled . | . . . Max in Single Turn . | . . . Machines Repaired . | . . . Machines Dismantled . | . . . Machines Sabotaged . | . . . Overloaded Fab Kills . | . . . Hacking | -11 -10 -10 --------- Run | Yrd Mat Sub Machines Accessed 6 | . 6 . Terminals 4 | . 4 . Fabricators . | . . . Repair Stations . | . . . Recycling Units 2 | . 2 . Scanalyzers . | . . . Garrison Access . | . . . Total Hacks 15 | . 15 . Successful 4 | . 4 . Failed 10 | . 10 . Catastrophic 2 | . 2 . Database Lockouts 1 | . 1 . Manual 19 | . 19 . Terminals 11 | . 11 . Fabricators . | . . . Repair Stations . | . . . Recycling Units 4 | . 4 . Scanalyzers . | . . . Garrison Access . | . . . Terminal Hacks 1 | . 1 . Robot Analysis 1 | . 1 . Fabricator Hacks . | . . . Repair Station Hacks . | . . . Recycling Unit Hacks . | . . . Scanalyzer . | . . . Garrison Access Hacks . | . . . Unauthorized Hacks 3 | . 3 . Terminals . | . . . Fabricators . | . . . Repair Stations . | . . . Recycling Units 3 | . 3 . Reject 1 | . 1 . Mask 2 | . 2 . Scanalyzers . | . . . Garrison Access . | . . . Data Cores Recovered . | . . . Used . | . . . Hacking Detections 5 | . 5 . Full Trace Events 3 | . 3 . Feedback Events . | . . . Feedback Blocked . | . . . Robot Schematics Acquired . | . . . Robots Built . | . . . Authchips . | . . . Time . | . . . Total Robot Build Rating . | . . . Part Schematics Acquired . | . . . Parts Built . | . . . Authchips . | . . . Time . | . . . Total Part Build Rating . | . . . Parts Repaired . | . . . Time . | . . . Parts Recycled . | . . . Recycled Matter . | . . . Retrieved Matter . | . . . Retrieved Components . | . . . Parts Scanalyzed . | . . . Part Schematics Acquired . | . . . Parts Damaged . | . . . Bothacking | -11 -10 -10 ------------ Run | Yrd Mat Sub Used RIF Installer . | . . . Robots Hacked . | . . . Non-combat . | . . . Combat . | . . . Robot Hacks Applied . | . . . Relay Couplers Released . | . . . Fabnet Peak Effective % . | . . . Robots Rewired . | . . . Allies Hacked . | . . . Hacks Repelled . | . . . Allies | -11 -10 -10 -------- Run | Yrd Mat Sub Total Allies . | . . . Largest Group . | . . . Highest-Rated Group . | . . . Highest-Rated Ally . | . . . Total Orders . | . . . Ally Attacks . | . . . Total Damage . | . . . Kills . | . . . Allies Corrupted . | . . . Allies Melted . | . . . Intel | -11 -10 -10 ------- Run | Yrd Mat Sub Robot Analysis Total 1 | . 1 . Derelict Logs Recovered . | . . . Drone Launches . | . . . Drone Recoveries . | . . . Exploration | -11 -10 -10 ------------- Run | Yrd Mat Sub Turns Passed 3191 | 3 2663 525 Spaces Moved 1079 | 3 914 162 Core . | . . . Treads 768 | . 606 162 Legs 311 | 3 308 . Wheels . | . . . Hover . | . . . Flight . | . . . Fastest Speed 120 | 120 120 320 Average Speed 273 | 120 266 320 Slowest Speed 470 | 120 470 320 Overloaded Moves . | . . . Propulsion Burnouts . | . . . Robots Hopped . | . . . Cave-ins Triggered . | . . . Exploration Rate (%) 42 | 2 99 26 Regions Visited 2 Branch Regions 1 Pre-discovered Areas . | . . . Known Exits Taken . | . . . Unknown Exits Taken 2 | 1 1 . Scrap Searched . | . . . Spaces Dug . | . . . Terrain Destroyed . | . . . Melee . | . . . Projectile . | . . . AOE . | . . . Terrain Rammed . | . . . Walls Destroyed . | . . . Machines Disabled . | . . . Actions | -11 -10 -10 --------- Run | Yrd Mat Sub Total 1223 | 2 1056 165 Wait 63 | . 63 . Move 1077 | 2 913 162 Hop . | . . . Pick Up 16 | . 16 . Fast Attach 3 | . 3 . Attach 4 | . 4 . Detach . | . . . Swap 3 | . 3 . Drop 5 | . 5 . Fire . | . . . Melee 52 | . 49 3 Ram . | . . . Kick . | . . . Crush . | . . . Escape Stasis . | . . . Rewire . | . . . Trap . | . . . Miscellaneous . | . . . Route ------- -11/Scrapyard -10/Materials (discovered 5 exits: [*Mat x3] / [*Min] / [*Sub]) -10/Subcaves History --------- Turn | Location | Event 1 | -11/Scrapyard | Discovered new exit (range 3) 4 | -11/Scrapyard | Entered Materials 313 | -10/Materials | Build established: Mutant 415 | -10/Materials | Discovered new exit (range 10) 774 | -10/Materials | Discovered new exit (range 4) 1069 | -10/Materials | Discovered new exit (range 8) 1505 | -10/Materials | Central database locked down 1544 | -10/Materials | Discovered new exit (range 15) 2174 | -10/Materials | Core integrity fell below 50% 2648 | -10/Materials | Discovered new exit (range 7) 2667 | -10/Materials | Entered Subcaves 3184 | -10/Subcaves | Core integrity fell below 20% 3192 | -10/Subcaves | Destroyed by BR-C3F(R) with Subdweller Beam Cannon Last Messages --------------- 02442_ Acquired Mace. 02494_ K-01 Serf cleans the Fusion Modulator. 02584_ System corrupted: Matter fused (-9). 02603_ Extracted 9 matter. 02648_ EXIT=FOUND LOCATION=UNKNOWN AMBIENT_HEAT=-10 GOAL=ESCAPE 02818_ System corrupted: Matter fused (-9). 03073_ %WI9=GC2|<|PB:EV IP